{"text_format":"2","workbook":"xlsx","n_sheets":8,"sheets":["ITEM 1 - SERVIÇO","Resumo do Orçamento","Orçamento Sintético","Cronograma Físico-financeiro","Curva ABC de Serviços"," BDI"," BDI DIF","Encargos Sociais"],"not_rendered":{"charts":0,"images":0,"macros":0,"external_links":0,"defined_names":58,"comments":0,"pivot_tables":0},"unopened":[],"bounds":{"document_bytes":16777216,"sheet_cells":100000,"run_cost":"one","rows_first":2000,"rows_last":500,"rows_between":2000,"halvings":0,"cell_chars":16384,"cell_head_chars":4096},"cells_cut":0,"cells_raw":0,"read":"whole","date_system":"1900"}

{"sheet":"ITEM 1 - SERVIÇO","index":0,"n_rows":12,"n_cols":8,"rows_kept":12,"cut":false,"hidden":false,"merged":[[5,0,5,7],[9,1,9,4]]}
["ECA: EXECUÇÃO DE CAPA ASFÁLTICA EM CONCRETO BETUMINOSO USINADO A QUENTE (CBUQ)",{"$nulls":5},"DATA BASE: "]
["LOCAL: MUNICÍPIOS DIVERSOS, ESTADO DE SERGIPE",{"$nulls":5},"BDI:",{"$f":"' BDI'!D31","v":0}]
[{"$nulls":6},"BDI DIF:",{"$f":"' BDI DIF'!D31","v":0}]
[]
[]
["DOCUMENTO: PLANILHA ORÇAMENTÁRIA DE SERVIÇOS – RESUMO"]
[]
["ITEM","DESCRIÇÃO",null,null,null,"QUANTIDADE (M²)","PREÇO UNIT.","PREÇO TOTAL"]
[]
[1,"ECA: EXECUÇÃO DE CAPA ASFÁLTICA EM CONCRETO BETUMINOSO USINADO A QUENTE (CBUQ)",null,null,null,270000,{"$f":"'Resumo do Orçamento'!H17","v":{"$error":"#REF!"}},{"$f":"TRUNC(F10*G10,2)","v":{"$error":"#REF!"}}]
[]
[{"$nulls":6},"TOTAL",{"$f":"SUM(H10:H11)","v":{"$error":"#REF!"}}]

{"sheet":"Resumo do Orçamento","index":1,"n_rows":17,"n_cols":8,"rows_kept":17,"cut":false,"hidden":false,"merged":[[11,1,11,5],[12,1,12,5],[13,1,13,5],[8,1,8,5],[9,1,9,5],[10,1,10,5],[5,1,5,5],[6,1,6,5],[7,1,7,5],[0,5,0,7],[1,5,1,7],[4,0,4,7]]}
[null,"Obra","DATA-BASE","B.D.I.","B.D.I. DIF","Encargos Sociais"]
[null,"ECA: EXECUÇÃO DE CAPA ASFÁLTICA EM CONCRETO BETUMINOSO USINADO A QUENTE (CBUQ)"]
[]
[]
["Planilha Orçamentária Resumida"]
["Item","Descrição",{"$nulls":4},"Total","Peso (%)"]
[" 1 ","PROJETO EXECUTIVO",{"$nulls":4},{"$f":"'Orçamento Sintético'!J5","v":0},{"$f":"ROUND(G7/$H$16,2)","v":{"$error":"#DIV/0!"}}]
[" 2 ","MOBILIZAÇÃO, CANTEIRO E ADMINISTRAÇÃO LOCAL",{"$nulls":4},{"$f":"'Orçamento Sintético'!J10","v":0},{"$error":"#DIV/0!"}]
[" 3 ","SERVIÇOS PRELIMINARES",{"$nulls":4},{"$f":"'Orçamento Sintético'!J14","v":0},{"$error":"#DIV/0!"}]
[" 4 ","PAVIMENTAÇÃO",{"$nulls":4},{"$f":"'Orçamento Sintético'!J17","v":0},{"$error":"#DIV/0!"}]
[" 5 ","AQUISIÇÃO E TRANSPORTE DE MATERIAL BETUMINOSO",{"$nulls":4},{"$f":"'Orçamento Sintético'!J21","v":0},{"$error":"#DIV/0!"}]
[" 6 ","SINALIZAÇÃO",{"$nulls":4},{"$f":"'Orçamento Sintético'!J24","v":0},{"$error":"#DIV/0!"}]
[" 7 ","MOMENTO DE TRANSPORTE",{"$nulls":4},{"$f":"'Orçamento Sintético'!J28","v":0},{"$error":"#DIV/0!"}]
[" 8 ","DESMOBILIZAÇÃO",{"$nulls":4},{"$f":"'Orçamento Sintético'!J31","v":0},{"$error":"#DIV/0!"}]
[]
[{"$nulls":4},"Total",null,null,{"$f":"SUM(G7:G14)","v":0}]
[{"$nulls":4},"Total / m²",null,null,{"$f":"TRUNC(H16/#REF!,2)","v":{"$error":"#REF!"}}]

{"sheet":"Orçamento Sintético","index":2,"n_rows":34,"n_cols":11,"rows_kept":34,"cut":false,"hidden":false,"merged":[[33,5,33,6],[33,8,33,10],[0,4,0,5],[0,9,0,10],[1,4,1,5],[1,9,1,10],[2,0,2,10]]}
[null,null,null,"Obra","DATA-BASE",null,"B.D.I.","B.D.I. DIF.",null,"Encargos Sociais"]
[null,null,null,"ECA: EXECUÇÃO DE CAPA ASFÁLTICA EM CONCRETO BETUMINOSO USINADO A QUENTE (CBUQ)",null,null,{"$f":"' BDI'!D31","v":0},{"$f":"' BDI DIF'!D31","v":0}]
["Orçamento Sintético"]
["Item","Código","Banco","Descrição","Und","Quant.","Valor Unit","BDI","Valor Unit com BDI","Total","Peso (%)"]
[" 1 ",null,null,"PROJETO EXECUTIVO",{"$nulls":5},{"$f":"SUBTOTAL(9,J6:J9)","v":0},{"$f":"J5/$I$34","v":{"$error":"#DIV/0!"}}]
[" 1.1 "," 12295 ","ORSE","Levantamento planialtimétrico semi-cadastral de vias km","km",2,null,{"$f":"$H$2","v":0},null,null,{"$f":"J6/$I$34","v":{"$error":"#DIV/0!"}}]
[" 1.2 "," 13587 ","ORSE","Projeto de Pavimentação Km","Km",2,null,{"$f":"$H$2","v":0},null,null,{"$error":"#DIV/0!"}]
[" 1.3 "," 11510 ","ORSE","Projeto de sinalização vertical e horizontal km","km",2,null,0,null,null,{"$error":"#DIV/0!"}]
[" 1.4 "," CODEVASF  001 ","Próprio","Ensaios geotécnicos de vias","km",2,null,{"$f":"$H$2","v":0},null,null,{"$error":"#DIV/0!"}]
[" 2 ",null,null,"MOBILIZAÇÃO, CANTEIRO E ADMINISTRAÇÃO LOCAL",{"$nulls":5},{"$f":"SUBTOTAL(9,J11:J13)","v":0},{"$error":"#DIV/0!"}]
[" 2.1 "," CODEVASF  035 ","Próprio","MOBILIZAÇÃO/DESMOBILIZAÇÃO (CAPA ASFÁLTICA)","km",90,null,{"$f":"$G$2","v":0},null,null,{"$error":"#DIV/0!"}]
[" 2.2 "," CODEVASF  029 ","Próprio","CANTEIRO DE OBRAS","UND",1,null,{"$f":"$G$2","v":0},null,null,{"$error":"#DIV/0!"}]
[" 2.3 "," CODEVASF  023 ","Próprio","ADMINISTRAÇÃO LOCAL","CJ",1,null,0,null,null,{"$error":"#DIV/0!"}]
[" 3 ",null,null,"SERVIÇOS PRELIMINARES",{"$nulls":5},{"$f":"SUBTOTAL(9,J15:J16)","v":0},{"$error":"#DIV/0!"}]
[" 3.1 "," 74209/001 ","SINAPI","PLACA DE OBRA EM CHAPA DE ACO GALVANIZADO","m²",6.48,null,0,null,null,{"$error":"#DIV/0!"}]
[" 3.2 "," 2602 ","ORSE","Remoção e reassentamento de paralelepípedo sobre colchão de areia","m²",1200,null,0,null,null,{"$error":"#DIV/0!"}]
[" 4 ",null,null,"PAVIMENTAÇÃO",{"$nulls":5},{"$f":"SUBTOTAL(9,J18:J20)","v":0},{"$error":"#DIV/0!"}]
[" 4.1 "," 4011212 ","SICRO3","Varredura da superfície para execução de revestimento asfáltico","m²",12000,null,0,null,null,{"$error":"#DIV/0!"}]
[" 4.2 "," 4011353 ","SICRO3","Pintura de ligação","m²",12000,null,0,null,null,{"$error":"#DIV/0!"}]
[" 4.3 "," 4011463 ","SICRO3","Concreto asfáltico - faixa C - areia e brita comerciais","t",1440,null,0,null,null,{"$error":"#DIV/0!"}]
[" 5 ",null,null,"AQUISIÇÃO E TRANSPORTE DE MATERIAL BETUMINOSO",{"$nulls":5},{"$f":"SUBTOTAL(9,J22:J23)","v":0},{"$error":"#DIV/0!"}]
[" 5.1 "," 001 ","Próprio","Aquisição e Transporte de Emulsão asfáltica - RR-1C","t",5.4,null,{"$f":"$H$2","v":0},null,null,{"$error":"#DIV/0!"}]
[" 5.2 "," 002 ","Próprio","Aquisição e Transporte de Cimento asfáltico de petróleo - CAP 50/70","t",91.05,null,0,null,null,{"$error":"#DIV/0!"}]
[" 6 ",null,null,"SINALIZAÇÃO",{"$nulls":5},{"$f":"SUBTOTAL(9,J25:J27)","v":0},{"$error":"#DIV/0!"}]
[" 6.1 "," 5213440 ","SICRO3","Placa de regulamentação em aço D = 0,60 m - película retrorrefletiva tipo I + SI - fornecimento e implantação","un",10,null,{"$f":"$G$2","v":0},null,null,{"$error":"#DIV/0!"}]
[" 6.2 "," 5213863 ","SICRO3","Suporte metálico galvanizado para placa de advertência ou regulamentação - lado ou diâmetro de 0,60 m - fornecimento eimplantação","un",10,null,0,null,null,{"$error":"#DIV/0!"}]
[" 6.3 "," 5213400 ","SICRO3","Pintura de faixa com tinta acrílica - espessura de 0,4 mm","m²",800,null,0,null,null,{"$error":"#DIV/0!"}]
[" 7 ",null,null,"MOMENTO DE TRANSPORTE",{"$nulls":5},{"$f":"SUBTOTAL(9,J29:J30)","v":0},{"$error":"#DIV/0!"}]
[" 7.1 "," 5914389 ","SICRO3","Transporte com caminhão basculante de 10 m³ - rodovia pavimentada","tkm",129600,null,{"$f":"$G$2","v":0},null,null,{"$error":"#DIV/0!"}]
[" 7.2 "," 5914374 ","SICRO3","Transporte com caminhão basculante de 10 m³ - rodovia em revestimento primário","tkm",14400,null,0,null,null,{"$error":"#DIV/0!"}]
[" 8 ",null,null,"DESMOBILIZAÇÃO",{"$nulls":5},{"$f":"SUBTOTAL(9,J32)","v":0},{"$error":"#DIV/0!"}]
[" 8.1 "," CODEVASF  035 ","Próprio","MOBILIZAÇÃO/DESMOBILIZAÇÃO (CAPA ASFÁLTICA)","km",90,null,{"$f":"$G$2","v":0},null,null,{"$error":"#DIV/0!"}]
[]
[{"$nulls":5},"Total Geral",null,null,{"$f":"SUBTOTAL(9,J5:J32)","v":0}]

{"sheet":"Cronograma Físico-financeiro","index":3,"n_rows":16,"n_cols":13,"rows_kept":16,"cut":false,"hidden":false,"merged":[[5,11,5,12],[3,0,3,12],[0,0,0,12],[1,0,1,12],[5,5,5,6],[5,7,5,8],[5,9,5,10]]}
[{"$f":"'ITEM 1 - SERVIÇO'!A1","v":"ECA: EXECUÇÃO DE CAPA ASFÁLTICA EM CONCRETO BETUMINOSO USINADO A QUENTE (CBUQ)"}]
["LOCAL: MUNICÍPIOS DIVERSOS, ESTADO DE SERGIPE"]
[]
["DOCUMENTO: CRONOGRAMA FÍSICO-FINANCEIRO"]
[]
["ITEM","DESCRIÇÃO","UNIDADE","QUANTIDADE","PREÇO TOTAL"," 1.º MÊS",null," 2.º MÊS",null," 3.º MÊS",null,"TOTAL"]
[{"$nulls":5},"PERCENTUAL","FINANCEIRO","PERCENTUAL","FINANCEIRO","PERCENTUAL","FINANCEIRO","PERCENTUAL","FINANCEIRO"]
[1,"PROJETO EXECUTIVO","%",1,{"$f":"'Resumo do Orçamento'!G7","v":0},0.55000000000000004,{"$f":"F8*$E8","v":0},0.45,{"$f":"H8*$E8","v":0},0,{"$f":"J8*$E8","v":0},{"$f":"M8/E8","v":{"$error":"#DIV/0!"}},{"$f":"G8+I8+K8","v":0}]
[2,"MOBILIZAÇÃO, CANTEIRO E ADMINISTRAÇÃO LOCAL","%",1,{"$f":"'Resumo do Orçamento'!G8","v":0},0,0,0,0,1,0,{"$error":"#DIV/0!"},0]
[3,"SERVIÇOS PRELIMINARES","%",1,{"$f":"'Resumo do Orçamento'!G9","v":0},0,0,0,0,1,0,{"$error":"#DIV/0!"},0]
[4,"PAVIMENTAÇÃO","%",1,{"$f":"'Resumo do Orçamento'!G10","v":0},0,0,0,0,1,0,{"$error":"#DIV/0!"},0]
[5,"AQUISIÇÃO E TRANSPORTE DE MATERIAL BETUMINOSO","%",1,{"$f":"'Resumo do Orçamento'!G11","v":0},0,0,0,0,1,0,{"$error":"#DIV/0!"},0]
[6,"SINALIZAÇÃO","%",1,{"$f":"'Resumo do Orçamento'!G12","v":0},0,0,0,0,1,0,{"$error":"#DIV/0!"},0]
[7,"MOMENTO DE TRANSPORTE","%",1,{"$f":"'Resumo do Orçamento'!G13","v":0},0,0,0,0,1,0,{"$error":"#DIV/0!"},0]
[8,"DESMOBILIZAÇÃO","%",1,{"$f":"'Resumo do Orçamento'!G14","v":0},0,0,0,0,1,0,{"$error":"#DIV/0!"},0]
[null,null,null,"TOTAL",{"$f":"SUM(E8:E15)","v":0},{"$f":"G16/$E$16","v":{"$error":"#DIV/0!"}},{"$f":"SUM(G8:G15)","v":0},{"$f":"I16/$E$16","v":{"$error":"#DIV/0!"}},{"$f":"SUM(I8:I15)","v":0},{"$f":"K16/$E$16","v":{"$error":"#DIV/0!"}},{"$f":"SUM(K8:K15)","v":0},{"$f":"M16/$E$16","v":{"$error":"#DIV/0!"}},{"$f":"SUM(M8:M13)","v":0}]

{"sheet":"Curva ABC de Serviços","index":4,"n_rows":26,"n_cols":11,"rows_kept":26,"cut":false,"hidden":false,"merged":[[4,0,4,9],[0,7,0,9],[1,7,1,9]]}
[null,null,"Obra","B.D.I.","B.D.I. DIF",null,null,"Encargos Sociais"]
[null,null,"ECA: EXECUÇÃO DE CAPA ASFÁLTICA EM CONCRETO BETUMINOSO USINADO A QUENTE (CBUQ)",{"$nulls":4},"Não Desonerado: embutido nos preços unitário dos insumos de mão de obra, de acordo com as bases."]
[]
[]
["Curva ABC de Serviços"]
["Código","Banco","Descrição","Und","Quant.","Custo  Unit","Valor  Unit","Total","Peso (%)","Peso Acumulado (%)","Índice de Reajustamento"]
[" 002 ","Próprio","Aquisição e Transporte de Cimento asfáltico de petróleo - CAP 50/70","t","91,05",null,{"$f":"TRUNC(F7*(1+$E$2),2)","v":0},{"$f":"TRUNC(E7*G7,2)","v":0},null,null,"CIMENTO ASFÁLTICO PETRÓLEO"]
[" 4011463 ","SICRO3","Concreto asfáltico - faixa C - areia e brita comerciais","t","1.440,0",null,{"$f":"TRUNC(F8*(1+$D$2),2)","v":0},0,null,null,"PAVIMENTAÇÃO"]
[" 5914389 ","SICRO3","Transporte com caminhão basculante de 10 m³ - rodovia pavimentada","tkm","129.600,0",null,0,0,null,null,"PAVIMENTAÇÃO"]
[" 2602 ","ORSE","Remoção e reassentamento de paralelepípedo sobre colchão de areia","m²","1.200,0",null,0,0,null,null,"ÍNDICE NACIONAL DE CUSTO DA CONSTRUÇÃO"]
[" CODEVASF  023 ","Próprio","ADMINISTRAÇÃO LOCAL","CJ","1,0",null,0,0,null,null,"ADMINISTRAÇÃO LOCAL"]
[" CODEVASF  001 ","Próprio","Ensaios geotécnicos de vias","km","2,0",null,0,0,null,null,"CONSULTORIA (SUPERVISÃO E PROJETOS)"]
[" 5213400 ","SICRO3","Pintura de faixa com tinta acrílica - espessura de 0,4 mm","m²","800,0",null,0,0,null,null,"SINALIZAÇÃO HORIZONTAL"]
[" 001 ","Próprio","Aquisição e Transporte de Emulsão asfáltica - RR-1C","t","5,4",null,{"$f":"TRUNC(F14*(1+$E$2),2)","v":0},0,null,null,"EMULSÕES (RR1C E RR2C)"]
[" CODEVASF  035 ","Próprio","MOBILIZAÇÃO/DESMOBILIZAÇÃO (CAPA ASFÁLTICA)","km","180,0",null,{"$f":"TRUNC(F15*(1+$D$2),2)","v":0},0,null,null,"MOBILIZAÇÃO E DESMOBILIZAÇÃO"]
[" 5914374 ","SICRO3","Transporte com caminhão basculante de 10 m³ - rodovia em revestimento primário","tkm","14.400,0",null,{"$f":"TRUNC(F16*(1+$D$2),2)","v":0},0,null,null,"PAVIMENTAÇÃO"]
[" CODEVASF  029 ","Próprio","CANTEIRO DE OBRAS","UND","1,0",null,0,{"$f":"TRUNC(E17*G17,2)","v":0},null,null,"ADMINISTRAÇÃO LOCAL"]
[" 13587 ","ORSE","Projeto de Pavimentação Km","Km","2,0",null,0,0,null,null,"CONSULTORIA (SUPERVISÃO E PROJETOS)"]
[" 11510 ","ORSE","Projeto de sinalização vertical e horizontal km","km","2,0",null,0,0,null,null,"CONSULTORIA (SUPERVISÃO E PROJETOS)"]
[" 12295 ","ORSE","Levantamento planialtimétrico semi-cadastral de vias km","km","2,0",null,0,0,null,null,"CONSULTORIA (SUPERVISÃO E PROJETOS)"]
[" 5213863 ","SICRO3","Suporte metálico galvanizado para placa de advertência ou regulamentação - lado ou diâmetro de 0,60 m - fornecimento eimplantação","un","10,0",null,0,0,null,null,"SINALIZAÇÃO VERTICAL"]
[" 4011353 ","SICRO3","Pintura de ligação","m²","12.000,0",null,0,0,null,null,"PAVIMENTAÇÃO"]
[" 5213440 ","SICRO3","Placa de regulamentação em aço D = 0,60 m - película retrorrefletiva tipo I + SI - fornecimento e implantação","un","10,0",null,0,0,null,null,"SINALIZAÇÃO VERTICAL"]
[" 74209/001 ","SINAPI","PLACA DE OBRA EM CHAPA DE ACO GALVANIZADO","m²","6,48",null,0,0,null,null,"SINALIZAÇÃO VERTICAL"]
[" 4011212 ","SICRO3","Varredura da superfície para execução de revestimento asfáltico","m²","12.000,0",null,{"$f":"TRUNC(F25*(1+$D$2),2)","v":0},0,null,null,"PAVIMENTAÇÃO"]
[{"$nulls":7},{"$f":"SUM(H7:H25)","v":0}]

{"sheet":" BDI","index":5,"n_rows":31,"n_cols":4,"rows_kept":31,"cut":false,"hidden":false,"merged":[[3,0,3,3],[5,0,5,3],[13,0,13,3],[30,0,30,1]]}
[]
[{"$f":"'ITEM 1 - SERVIÇO'!A1","v":"ECA: EXECUÇÃO DE CAPA ASFÁLTICA EM CONCRETO BETUMINOSO USINADO A QUENTE (CBUQ)"}]
[]
["DOCUMENTO: DETALHAMENTO DA BONIFICAÇÃO E DESPESAS INDIRETAS"]
[]
["LEGENDA"]
["BDI =","Bonificação e Despesas Indiretas"]
["AC =","Administração Central"]
["SG=","Seguros e garantias"]
["DF =","Despesas Financeiras"]
["R =","Riscos"]
["L =","Lucro"]
["I =","Impostos"]
["DETALHAMENTO"]
["ITEM","DESCRIÇÃO","% sobre PV","% sobre CD"]
[]
[1,"DESPESAS INDIRETAS",{"$f":"SUBTOTAL(9,C18:C21)","v":0},{"$f":"SUBTOTAL(9,D18:D21)","v":0}]
["1.1","Administração Central",null,{"$f":"(1/(1-$C$31))*C18","v":0}]
["1.2","Seguros e garantias",null,{"$f":"(1/(1-$C$31))*C19","v":0}]
["1.3","Riscos",null,{"$f":"(1/(1-$C$31))*C20","v":0}]
["1.4","Despesas Financeiras",null,{"$f":"(1/(1-$C$31))*C21","v":0}]
[]
[2,"BENEFÍCIOS",{"$f":"SUBTOTAL(9,C24)","v":0},{"$f":"SUBTOTAL(9,D24)","v":0}]
["2.1","Lucro",null,{"$f":"(1/(1-$C$31))*C24","v":0}]
[]
[3,"TRIBUTOS",{"$f":"SUBTOTAL(9,C27:C30)","v":0},{"$f":"SUBTOTAL(9,D27:D30)","v":0}]
["3.1","PIS",null,{"$f":"(1/(1-$C$31))*C27","v":0}]
["3.2","COFINS",null,{"$f":"(1/(1-$C$31))*C28","v":0}]
["3.3","ISS",null,{"$f":"(1/(1-$C$31))*C29","v":0}]
["3.4","IPRB",null,{"$f":"(1/(1-$C$31))*C30","v":0}]
["BDI",null,{"$f":"SUBTOTAL(9,C17:C30)","v":0},{"$f":"TRUNC(SUBTOTAL(9,D17:D30),4)","v":0}]

{"sheet":" BDI DIF","index":6,"n_rows":31,"n_cols":4,"rows_kept":31,"cut":false,"hidden":false,"merged":[[3,0,3,3],[5,0,5,3],[13,0,13,3],[30,0,30,1]]}
[]
[{"$f":"'ITEM 1 - SERVIÇO'!A1","v":"ECA: EXECUÇÃO DE CAPA ASFÁLTICA EM CONCRETO BETUMINOSO USINADO A QUENTE (CBUQ)"}]
[]
["DOCUMENTO: DETALHAMENTO DA BONIFICAÇÃO E DESPESAS INDIRETAS - DIFERENCIADO"]
[]
["LEGENDA"]
["BDI =","Bonificação e Despesas Indiretas"]
["AC =","Administração Central"]
["SG=","Seguros e garantias"]
["DF =","Despesas Financeiras"]
["R =","Riscos"]
["L =","Lucro"]
["I =","Impostos"]
["DETALHAMENTO"]
["ITEM","DESCRIÇÃO","% sobre PV","% sobre CD"]
[]
[1,"DESPESAS INDIRETAS",{"$f":"SUBTOTAL(9,C18:C21)","v":0},{"$f":"SUBTOTAL(9,D18:D21)","v":0}]
["1.1","Administração Central",null,{"$f":"(1/(1-$C$31))*C18","v":0}]
["1.2","Seguros e garantias",null,{"$f":"(1/(1-$C$31))*C19","v":0}]
["1.3","Riscos",null,{"$f":"(1/(1-$C$31))*C20","v":0}]
["1.4","Despesas Financeiras",null,{"$f":"(1/(1-$C$31))*C21","v":0}]
[]
[2,"BENEFÍCIOS",{"$f":"SUBTOTAL(9,C24)","v":0},{"$f":"SUBTOTAL(9,D24)","v":0}]
["2.1","Lucro",null,{"$f":"(1/(1-$C$31))*C24","v":0}]
[]
[3,"TRIBUTOS",{"$f":"SUBTOTAL(9,C27:C30)","v":0},{"$f":"SUBTOTAL(9,D27:D30)","v":0}]
["3.1","PIS",null,{"$f":"(1/(1-$C$31))*C27","v":0}]
["3.2","COFINS",null,{"$f":"(1/(1-$C$31))*C28","v":0}]
["3.3","ISS",null,{"$f":"(1/(1-$C$31))*C29","v":0}]
["3.4","IPRB",null,{"$f":"(1/(1-$C$31))*C30","v":0}]
["BDI",null,{"$f":"SUBTOTAL(9,C17:C30)","v":0},{"$f":"TRUNC(SUBTOTAL(9,D17:D30),4)","v":0}]

{"sheet":"Encargos Sociais","index":7,"n_rows":43,"n_cols":4,"rows_kept":43,"cut":false,"hidden":false,"merged":[[5,0,5,3],[43,0,43,3],[42,0,42,1],[7,0,7,3],[18,0,18,3],[30,0,30,3],[37,0,37,3],[41,0,41,3]]}
[{"$f":"'ITEM 1 - SERVIÇO'!A1","v":"ECA: EXECUÇÃO DE CAPA ASFÁLTICA EM CONCRETO BETUMINOSO USINADO A QUENTE (CBUQ)"}]
["LOCAL: MUNICÍPIOS DIVERSOS, ESTADO DE SERGIPE"]
[]
[]
[]
["ENCARGOS SOCIAIS SOBRE A MÃO DE OBRA"]
["CÓDIGO","DESCRIÇÃO","HORISTA %","MENSALISTA %"]
["GRUPO A"]
["A1","INSS"]
["A2","SESI"]
["A3","SENAI"]
["A4","INCRA"]
["A5","SEBRAE"]
["A6","Salário Educação"]
["A7","Seguro Contra Acidentes de Trabalho"]
["A8","FGTS"]
["A9","SECONCI"]
["A","TOTAL",{"$f":"SUM(C9:C17)","v":0},{"$f":"SUM(D9:D17)","v":0}]
["GRUPO B"]
["B1","Repouso Semanal Remunerado"]
["B2","Feriados"]
["B3","Auxílio-enfermidade"]
["B4","13° salário"]
["B5","Licença-paternidade"]
["B6","Faltas Justificadas"]
["B7","Dias de chuva"]
["B8","Auxílio Acidente de Trabalho"]
["B9","Férias Gozadas"]
["B10","Salário Maternidade"]
["B","TOTAL",{"$f":"SUM(C20:C29)","v":0},{"$f":"SUM(D20:D29)","v":0}]
["GRUPO C"]
["C1","Aviso Prévio Indenizado"]
["C2","Aviso Prévio Trabalhado"]
["C3","Férias Indenizadas"]
["C4","Depósito Rescisão Sem Justa Causa"]
["C5","Indenização Adicional"]
["C","TOTAL",{"$f":"SUM(C32:C36)","v":0},{"$f":"SUM(D32:D36)","v":0}]
["GRUPO D"]
["D1","Reincidência de A sobre B"]
["D2","Reincidência de Grupo A sobre Aviso Prévio Trabalhado e Reincidência do FGTS sobre Aviso Prévio Indenizado"]
["D","TOTAL",{"$f":"SUM(C39:C40)","v":0},{"$f":"SUM(D39:D40)","v":0}]
[]
["T O T A L (%)",null,{"$f":"C18+C30+C37+C41","v":0},{"$f":"D18+D30+D37+D41","v":0}]